fUSD/lending_fUSD_20240117
["ID","MTS","AMOUNT","RATE_DAILY","PERIOD"]
[311991112,1705533058455,-500.0,0.00022191,2]
[311991113,1705533058464,-585.82,0.00022191,2]
[311991114,1705533058474,-500.0,0.00022191,2]
[311991115,1705533058484,-500.0,0.00022191,2]
[311991116,1705533058494,-500.0,0.00022191,2]
[311991117,1705533058503,-1431.56,0.00022191,2]
[311991118,1705533058513,-512.48014145,0.00022191,2]
[311991119,1705533058522,-500.0,0.00022191,2]
[311991120,1705533058532,-500.0,0.00022191,2]
[311991121,1705533058541,-500.0,0.00022191,2]
[311991122,1705533058551,-500.0,0.00022191,2]
[311991123,1705533058561,-508.91251526,0.00022191,2]
[311991124,1705533058571,-500.0,0.00022191,2]
[311991125,1705533058581,-500.0,0.00022191,2]
[311991126,1705533058591,-500.0,0.00022191,2]
[311991127,1705533058600,-500.0,0.00022191,2]
[311991128,1705533058610,-500.0,0.00022191,2]
[311991129,1705533058620,-1083.86,0.00022191,2]
[311991130,1705533058630,-500.0,0.00022191,2]
[311991131,1705533058639,-943.48,0.00022191,2]
[311991132,1705533058649,-500.0,0.00022191,2]
[311991133,1705533058659,-500.0,0.00022191,2]
[311991134,1705533058668,-7741.29,0.00022191,2]
[311991135,1705533058677,-500.0,0.00022191,2]
[311991136,1705533058687,-368.82,0.00022191,2]
[311991137,1705533058697,-733.62,0.00022191,2]
[311991138,1705533058706,-500.0,0.00022191,2]
[311991139,1705533058716,-515.88397453,0.00022191,2]
[311991140,1705533058725,-500.0,0.00022191,2]
[311991141,1705533058735,-500.0,0.00022191,2]
[311991142,1705533058744,-500.0,0.00022191,2]
[311991143,1705533058754,-500.0,0.00022191,2]
[311991144,1705533058764,-500.0,0.00022191,2]
[311991145,1705533058774,-649.68,0.00022191,2]
[311991146,1705533058784,-500.0,0.00022191,2]
[311991147,1705533058795,-500.0,0.00022191,2]
[311991148,1705533058804,-500.0,0.00022191,2]
[311991149,1705533058816,-500.0,0.00022191,2]
[311991150,1705533058826,-150.48,0.00022191,2]
[311991151,1705533058836,-500.0,0.00022191,2]
[311991152,1705533058845,-500.0,0.00022191,2]
[311991153,1705533058857,-500.0,0.00022191,2]
[311991154,1705533058867,-500.0,0.00022191,2]
[311991155,1705533058877,-500.0,0.00022191,2]
[311991156,1705533058888,-500.0,0.00022191,2]
[311991157,1705533058898,-500.0,0.00022191,2]
[311991158,1705533058907,-500.0,0.00022191,2]
[311991159,1705533058917,-500.0,0.00022191,2]
[311991160,1705533058926,-500.0,0.00022191,2]
[311991161,1705533058936,-500.0,0.00022191,2]
[311991162,1705533058945,-500.0,0.00022191,2]
[311991163,1705533058955,-500.0,0.00022191,2]
[311991164,1705533058965,-500.0,0.00022191,2]
[311991165,1705533058974,-500.0,0.00022191,2]
[311991166,1705533058984,-500.0,0.00022191,2]
[311991167,1705533058993,-500.0,0.00022191,2]
[311991168,1705533059003,-1803.87,0.00022191,2]
[311991169,1705533059013,-500.0,0.00022191,2]
[311991170,1705533059023,-500.0,0.00022191,2]
[311991171,1705533059033,-500.0,0.00022191,2]
[311991172,1705533059043,-500.0,0.00022191,2]
[311991173,1705533059053,-500.0,0.00022191,2]
[311991174,1705533059062,-583.65,0.00022191,2]
[311991175,1705533059071,-500.0,0.00022191,2]
[311991176,1705533059081,-500.0,0.00022191,2]
[311991177,1705533059093,-1212.45,0.00022191,2]
[311991178,1705533059104,-500.0,0.00022191,2]
[311991179,1705533059114,-500.0,0.00022191,2]
[311991180,1705533059124,-500.0,0.00022191,2]
[311991181,1705533059134,-547.7,0.00022191,2]
[311991182,1705533059348,-500.0,0.00022191,2]
[311991183,1705533059366,-500.0,0.00022191,2]
[311991184,1705533059375,-500.0,0.00022191,2]
[311991185,1705533059384,-516.08801815,0.00022191,2]
[311991186,1705533059395,-500.0,0.00022191,2]
[311991187,1705533059404,-500.0,0.00022191,2]
[311991188,1705533059413,-500.0,0.00022191,2]
[311991189,1705533059424,-500.0,0.00022191,2]
[311991190,1705533059433,-500.0,0.00022191,2]
[311991191,1705533059442,-366.73,0.00022191,2]
[311991192,1705533059452,-500.0,0.00022191,2]
[311991193,1705533059462,-512.93173788,0.00022191,2]
[311991194,1705533059472,-500.0,0.00022191,2]
[311991195,1705533059482,-504.49309989,0.00022191,2]
[311991196,1705533059490,-500.0,0.00022191,2]
[311991197,1705533059500,-500.0,0.00022191,2]
[311991198,1705533059510,-500.0,0.00022191,2]
[311991199,1705533059520,-500.0,0.00022191,2]
[311991200,1705533059530,-500.0,0.00022191,2]
[311991201,1705533059539,-814.22,0.00022191,2]
[311991202,1705533059549,-500.0,0.00022191,2]
[311991203,1705533059558,-500.0,0.00022191,2]
[311991204,1705533059567,-500.0,0.00022191,2]
[311991205,1705533059577,-500.0,0.00022191,2]
[311991206,1705533059586,-500.0,0.00022191,2]
[311991207,1705533059596,-500.0,0.00022191,2]
[311991208,1705533059605,-500.0,0.00022191,2]
[311991209,1705533059614,-500.0,0.00022191,2]
[311991210,1705533059624,-500.0,0.00022191,2]
[311991211,1705533059633,-500.0,0.00022191,2]
[311991212,1705533059642,-654.96,0.00022191,2]
[311991213,1705533059652,-500.0,0.00022191,2]
[311991214,1705533059662,-500.0,0.00022191,2]
[311991215,1705533059671,-4524.82,0.00022191,2]
[311991216,1705533059681,-3584.36,0.00022191,2]
[311991217,1705533059692,-500.0,0.00022191,2]
[311991218,1705533059702,-500.0,0.00022191,2]
[311991219,1705533059712,-500.0,0.00022191,2]
[311991220,1705533059724,-500.0,0.00022191,2]
[311991221,1705533059736,-500.0,0.00022191,2]
[311991222,1705533059748,-500.0,0.00022191,2]
[311991223,1705533059758,-851.19,0.00022191,2]
[311991224,1705533059768,-500.0,0.00022191,2]
[311991225,1705533059778,-500.0,0.00022191,2]
[311991226,1705533059788,-533.0615829,0.00022191,2]
[311991227,1705533059798,-500.0,0.00022191,2]
[311991228,1705533059807,-500.0,0.00022191,2]
[311991229,1705533059817,-500.0,0.00022191,2]
[311991230,1705533059827,-500.0,0.00022191,2]
[311991231,1705533059837,-614.49,0.00022191,2]
[311991232,1705533059846,-500.0,0.00022191,2]
[311991233,1705533059857,-1282.11,0.00022191,2]
[311991234,1705533059867,-500.0,0.00022191,2]
[311991235,1705533059879,-5492.45,0.00022191,2]
[311991236,1705533059889,-631.67,0.00022191,2]
[311991237,1705533059899,-558.18,0.00022191,2]
[311991238,1705533059910,-500.0,0.00022191,2]
[311991239,1705533059920,-500.0,0.00022191,2]
[311991240,1705533059929,-690.24,0.00022191,2]
[311991241,1705533059939,-500.0,0.00022191,2]
[311991242,1705533059949,-500.0,0.00022191,2]
[311991243,1705533059958,-500.0,0.00022191,2]
[311991244,1705533059967,-500.0,0.00022191,2]
[311991245,1705533059977,-553.8,0.00022191,2]
[311991246,1705533059987,-505.84,0.00022191,2]
[311991247,1705533059997,-500.0,0.00022191,2]
[311991248,1705533060007,-500.0,0.00022191,2]
[311991249,1705533060016,-500.0,0.00022191,2]
[311991250,1705533060026,-500.0,0.00022191,2]
[311991251,1705533060036,-500.0,0.00022191,2]
[311991252,1705533060046,-500.0,0.00022191,2]
[311991253,1705533060057,-500.0,0.00022191,2]
[311991254,1705533060068,-500.0,0.00022191,2]
[311991255,1705533060077,-250.0,0.00022191,2]
[311991256,1705533060087,-500.0,0.00022191,2]
[311991257,1705533060100,-500.0,0.00022191,2]
[311991258,1705533060111,-560.0,0.00022191,2]
[311991259,1705533060121,-672.46,0.00022191,2]
[311991260,1705533060131,-500.0,0.00022191,2]
[311991261,1705533060141,-505.10373693,0.00022191,2]
[311991262,1705533060150,-500.0,0.00022191,2]
[311991263,1705533060160,-500.0,0.00022191,2]
[311991264,1705533060170,-500.0,0.00022191,2]
[311991265,1705533060180,-500.0,0.00022191,2]
[311991266,1705533060190,-614.20111649,0.00022191,2]
[311991267,1705533060199,-500.0,0.00022191,2]
[311991268,1705533060209,-6204.2,0.00022191,2]
[311991269,1705533060218,-500.0,0.00022191,2]
[311991270,1705533060228,-699.07,0.00022191,2]
[311991271,1705533060237,-500.0,0.00022191,2]
[311991272,1705533060247,-500.0,0.00022191,2]
[311991273,1705533060257,-500.0,0.00022191,2]
[311991274,1705533060267,-834.45,0.00022191,2]
[311991275,1705533060277,-500.0,0.00022191,2]
[311991276,1705533060287,-500.0,0.00022191,2]
[311991277,1705533060297,-553.8,0.00022191,2]
[311991278,1705533060306,-500.0,0.00022191,2]
[311991279,1705533060316,-500.0,0.00022191,2]
[311991280,1705533060326,-500.0,0.00022191,2]
[311991281,1705533060335,-500.0,0.00022191,2]
[311991282,1705533060345,-500.0,0.00022191,2]
[311991283,1705533060356,-500.0,0.00022191,2]
[311991284,1705533060365,-500.0,0.00022191,2]
[311991285,1705533060375,-500.0,0.00022191,2]
[311991286,1705533060384,-500.0,0.00022191,2]
[311991287,1705533060394,-500.0,0.00022191,2]
[311991288,1705533060403,-2501.14,0.00022191,2]
[311991289,1705533060413,-500.0,0.00022191,2]
[311991290,1705533060423,-500.0,0.00022191,2]
[311991291,1705533060433,-500.0,0.00022191,2]
[311991292,1705533060443,-500.0,0.00022191,2]
[311991293,1705533060453,-500.0,0.00022191,2]
[311991294,1705533060462,-1114.39,0.00022191,2]
[311991295,1705533060472,-500.0,0.00022191,2]
[311991296,1705533060482,-500.0,0.00022191,2]
[311991297,1705533060492,-955.16,0.00022191,2]
[311991298,1705533060502,-500.0,0.00022191,2]
[311991299,1705533060512,-503.13957987,0.00022191,2]
[311991300,1705533060521,-500.0,0.00022191,2]
[311991301,1705533060531,-500.0,0.00022191,2]
[311991302,1705533060540,-500.0,0.00022191,2]
[311991303,1705533060551,-500.0,0.00022191,2]
[311991304,1705533060561,-520.74,0.00022191,2]
[311991305,1705533060571,-508.63,0.00022191,2]
[311991306,1705533060580,-500.0,0.00022191,2]
[311991307,1705533060590,-1158.97,0.00022191,2]
[311991308,1705533060599,-500.0,0.00022191,2]
[311991309,1705533060608,-709.83,0.00022191,2]
[311991310,1705533060618,-500.0,0.00022191,2]
[311991311,1705533060627,-1648.94,0.00022191,2]
[311991312,1705533060637,-514.47565013,0.00022191,2]
[311991313,1705533060646,-500.0,0.00022191,2]
[311991314,1705533060655,-500.0,0.00022191,2]
[311991315,1705533060665,-500.0,0.00022191,2]
[311991316,1705533060675,-500.0,0.00022191,2]
[311991317,1705533060685,-500.0,0.00022191,2]
[311991318,1705533060696,-500.0,0.00022191,2]
[311991319,1705533060705,-550.24,0.00022191,2]
[311991320,1705533060716,-1185.45,0.00022191,2]
[311991321,1705533060726,-500.0,0.00022191,2]
[311991322,1705533060737,-500.0,0.00022191,2]
[311991323,1705533060748,-500.0,0.00022191,2]
[311991324,1705533060758,-500.0,0.00022191,2]
[311991325,1705533060768,-500.0,0.00022191,2]
[311991326,1705533060778,-500.0,0.00022191,2]
[311991327,1705533060789,-1027.65,0.00022191,2]
[311991328,1705533060799,-560.04,0.00022191,2]
[311991329,1705533060810,-500.0,0.00022191,2]
[311991330,1705533060820,-500.0,0.00022191,2]
[311991331,1705533060829,-500.0,0.00022191,2]
[311991332,1705533060838,-542.79,0.00022191,2]
[311991333,1705533060848,-500.0,0.00022191,2]
[311991334,1705533060857,-500.0,0.00022191,2]
[311991335,1705533060867,-607.97,0.00022191,2]
[311991336,1705533060876,-588.12,0.00022191,2]
[311991337,1705533060886,-1521.38,0.00022191,2]
[311991338,1705533060895,-500.0,0.00022191,2]
[311991339,1705533060904,-500.0,0.00022191,2]
[311991340,1705533060915,-500.0,0.00022191,2]
[311991341,1705533060924,-559.86,0.00022191,2]
[311991342,1705533060933,-2196.63,0.00022191,2]
[311991343,1705533060943,-594.94,0.00022191,2]
[311991344,1705533060952,-500.0,0.00022191,2]
[311991345,1705533060962,-453.60887212,0.00022191,2]
[311991361,1705533674786,175.4,0.00016203,2]
[311991362,1705533727544,259.81452361,0.00016203,2]
[311991363,1705533730890,856.84230834,0.00016203,2]
[311991364,1705533741542,259.81452361,0.00016203,2]
[311991365,1705533750885,698.77196028,0.00016203,2]
[311991366,1705533761544,259.81452361,0.00016203,2]
[311991367,1705533777531,259.81452361,0.00016203,2]
[311991368,1705533803553,179.2506257,0.00016203,2]
[311991372,1705534103354,155.46753619,0.0003,120]
[311991379,1705534231613,-539.92,0.00018531,2]
[311991380,1705534231623,-164.12104773,0.00020369,2]
[311991381,1705534231632,-150.0,0.00020404,2]
[311991382,1705534231642,-3981.82230598,0.00020405,2]
[311991383,1705534231654,-720.168,0.00020405,2]
[311991384,1705534231675,-472.96270286,0.00020405,2]
[311991389,1705534231930,-391.9015,0.00020405,2]
[311991392,1705534231944,-18313.14549116,0.00020405,2]
[311991395,1705534231953,-200.0,0.00020411,2]
[311991398,1705534231963,-719.68,0.00020414,2]
[311991401,1705534231972,-1161.55,0.00020417,2]
[311991404,1705534231982,-169.17,0.00020421,2]
[311991407,1705534231992,-500.0,0.00020432,2]
[311991410,1705534232002,-280.32,0.00020443,2]
[311991413,1705534232012,-499.99,0.00020443,2]
[311991417,1705534232022,-216.24,0.00020449,2]
[311991419,1705534232031,-5456.05,0.00020452,2]
[311991423,1705534232041,-346.37,0.00020452,2]
[311991425,1705534232050,-160.17,0.00020452,10]
[311991428,1705534232059,-1634.71,0.00020469,2]
[311991431,1705534232068,-1024.34,0.00020469,2]
[311991434,1705534232078,-150.29,0.00020507,2]
[311991436,1705534232087,-163.72,0.0002055,2]
[311991440,1705534232097,-155.63,0.00020616,2]
[311991442,1705534232106,-150.29,0.00020723,2]
[311991443,1705534232116,-313.74,0.00020761,2]
[311991444,1705534232125,-539.92,0.00020795,2]
[311991445,1705534232134,-157.21,0.00020822,2]
[311991448,1705534232145,-158.8,0.00020927,2]
[311991450,1705534232157,-150.29,0.00020938,2]
[311991451,1705534232168,-160.17,0.00020953,10]
[311991452,1705534232177,-729.06,0.00020958,2]
[311991453,1705534232187,-176.94,0.00020975,2]
[311991454,1705534232197,-789.26631519,0.00020998,2]
[311991455,1705534232206,-789.2663152,0.00020998,2]
[311991456,1705534232215,-155.63,0.00021046,2]
[311991457,1705534232224,-405.16,0.00021097,2]
[311991458,1705534232234,-150.29,0.00021154,2]
[311991459,1705534232243,-150.0,0.000212,2]
[311991460,1705534232252,-169.17,0.00021238,2]
[311991461,1705534232261,-150.29,0.0002137,2]
[311991462,1705534232270,-226.49027605,0.00021396,3]
[311991463,1705534232279,-1161.55,0.00021396,2]
[311991464,1705534232289,-155.63,0.00021477,2]
[311991465,1705534232298,-150.29,0.00021586,2]
[311991466,1705534232308,-164.12104773,0.00021593,2]
[311991467,1705534232318,-300.0,0.00021756,2]
[311991468,1705534232327,-300.0,0.00021756,2]
[311991469,1705534232337,-418.32,0.00021756,2]
[311991470,1705534232346,-306.57,0.00021756,2]
[311991471,1705534232355,-150.29,0.00021802,2]
[311991472,1705534232366,-1000.0,0.00021814,2]
[311991473,1705534232375,-5000.0,0.00021817,2]
[311991474,1705534232385,-533.7236,0.00021817,2]
[311991475,1705534232394,-1021.0,0.000219,2]
[311991476,1705534232403,-155.63,0.00021908,2]
[311991477,1705534232412,-180.49566527,0.00021915,2]
[311991478,1705534232421,-155.0,0.00021915,2]
[311991479,1705534232432,-161.81771881,0.00021915,2]
[311991480,1705534232443,-280.29843152,0.00021915,2]
[311991481,1705534232452,-1003.77588213,0.00021915,5]
[311991482,1705534232462,-158.55474253,0.00021916,2]
[311991483,1705534232471,-215.21165486,0.00021916,2]
[311991484,1705534232482,-3846.80508323,0.00021916,2]
[311991485,1705534232491,-502.65486772,0.00021917,2]
[311991486,1705534232500,-308.53722002,0.00021917,2]
[311991487,1705534232509,-500.0,0.00021917,2]
[311991488,1705534232520,-500.0,0.00021917,2]
[311991489,1705534232530,-500.0,0.00021917,2]
[311991490,1705534232539,-500.0,0.00021917,2]
[311991491,1705534232548,-500.0,0.00021917,2]
[311991492,1705534232558,-500.0,0.00021917,2]
[311991493,1705534232567,-500.0,0.00021917,2]
[311991494,1705534232576,-500.0,0.00021917,2]
[311991495,1705534232585,-500.0,0.00021917,2]
[311991496,1705534232595,-636.99,0.00021917,2]
[311991497,1705534232604,-378.77,0.00021917,2]
[311991498,1705534232615,-500.0,0.00021917,2]
[311991499,1705534232625,-574.20560836,0.00021917,2]
[311991500,1705534232634,-613.30564821,0.00021917,2]
[311991501,1705534232643,-500.0,0.00021917,2]
[311991502,1705534232653,-500.0,0.00021917,2]
[311991503,1705534232662,-500.0,0.00021917,2]
[311991504,1705534232671,-500.0,0.00021917,2]
[311991505,1705534232681,-500.0,0.00021917,2]
[311991506,1705534232690,-500.0,0.00021917,2]
[311991507,1705534232700,-500.0,0.00021917,2]
[311991508,1705534232709,-500.0,0.00021917,2]
[311991509,1705534232719,-500.0,0.00021917,2]
[311991510,1705534232728,-548.49558681,0.00021917,2]
[311991511,1705534232737,-550.68587308,0.00021917,2]
[311991512,1705534232748,-500.0,0.00021917,2]
[311991513,1705534232758,-577.11,0.00021917,2]
[311991514,1705534232768,-500.0,0.00021917,2]
[311991515,1705534232778,-500.0,0.00021917,2]
[311991516,1705534232788,-500.0,0.00021917,2]
[311991517,1705534232797,-284.85,0.00021917,2]
[311991518,1705534232806,-500.0,0.00021917,2]
[311991519,1705534232817,-500.0,0.00021917,2]
[311991520,1705534232826,-500.0,0.00021917,2]
[311991521,1705534232835,-500.0,0.00021917,2]
[311991522,1705534232844,-164.59956867,0.00021917,2]
[311991523,1705534232853,-500.0,0.00021917,2]
[311991524,1705534232862,-561.34,0.00021917,2]
[311991525,1705534232871,-251.42,0.00021917,2]
[311991526,1705534232883,-500.0,0.00021917,2]
[311991527,1705534232893,-500.0,0.00021917,2]
[311991528,1705534232902,-500.0,0.00021917,2]
[311991529,1705534232913,-500.0,0.00021917,2]
[311991530,1705534232923,-387.01,0.00021917,2]
[311991531,1705534232932,-452.92,0.00021917,2]
[311991532,1705534232942,-500.0,0.00021917,2]
[311991533,1705534232953,-500.0,0.00021917,2]
[311991534,1705534232962,-500.0,0.00021917,2]
[311991535,1705534232971,-500.0,0.00021917,2]
[311991536,1705534232982,-156.46,0.00021917,2]
[311991537,1705534232991,-630.23,0.00021917,2]
[311991538,1705534233001,-500.0,0.00021917,2]
[311991539,1705534233011,-500.0,0.00021917,2]
[311991540,1705534233020,-500.0,0.00021917,2]
[311991541,1705534233028,-547.32,0.00021917,2]
[311991542,1705534233039,-500.0,0.00021917,2]
[311991543,1705534233049,-500.0,0.00021917,2]
[311991544,1705534233058,-500.0,0.00021917,2]
[311991545,1705534233069,-500.0,0.00021917,2]
[311991546,1705534233080,-500.0,0.00021917,2]
[311991547,1705534233091,-500.0,0.00021917,2]
[311991548,1705534233101,-500.0,0.00021917,2]
[311991549,1705534233111,-500.0,0.00021917,2]
[311991550,1705534233122,-445.09,0.00021917,2]
[311991551,1705534233133,-500.0,0.00021917,2]
[311991552,1705534233143,-250.0,0.00021918,2]
[311991553,1705534233153,-286.89393575,0.0002192,2]
[311991554,1705534233165,-1639.24236443,0.00021997,2]
[311991555,1705534233175,-450.0,0.00022,3]
[311991556,1705534233184,-152.42425773,0.00022,2]
[311991557,1705534233193,-190.92458152,0.00022,2]
[311991558,1705534233202,-150.29,0.00022018,2]
[311991559,1705534233210,-169.17,0.00022055,2]
[311991560,1705534233221,-4768.06131378,0.00022092,2]
[311991561,1705534233233,-2477.74,0.00022094,2]
[311991562,1705534233243,-500.0,0.00022094,2]
[311991563,1705534233254,-500.0,0.00022094,2]
[311991564,1705534233264,-893.26,0.00022094,2]
[311991565,1705534233273,-500.0,0.00022094,2]
[311991566,1705534233284,-547.02,0.00022094,2]
[311991567,1705534233294,-633.98,0.00022094,2]
[311991568,1705534233304,-993.54,0.00022094,2]
[311991569,1705534233313,-500.0,0.00022094,2]
[311991570,1705534233322,-7096.18,0.00022094,2]
[311991571,1705534233330,-1653.55,0.00022094,2]
[311991572,1705534233339,-500.0,0.00022094,2]
[311991573,1705534233348,-500.0,0.00022094,2]
[311991574,1705534233357,-500.0,0.00022094,2]
[311991575,1705534233366,-500.0,0.00022094,2]
[311991576,1705534233378,-465.51,0.00022094,2]
[311991577,1705534233387,-600.38,0.00022094,2]
[311991578,1705534233397,-500.0,0.00022094,2]
[311991579,1705534233407,-500.0,0.00022094,2]
[311991580,1705534233416,-151.28,0.00022094,2]
[311991581,1705534233425,-500.0,0.00022094,2]
[311991582,1705534233435,-3285.66,0.00022094,2]
[311991583,1705534233450,-5034.74,0.00022094,2]
[311991584,1705534233460,-1824.58,0.00022094,2]
[311991585,1705534233469,-1231.66,0.00022094,2]
[311991586,1705534233478,-500.0,0.00022094,2]
[311991587,1705534233490,-500.0,0.00022094,2]
[311991588,1705534233499,-500.0,0.00022094,2]
[311991589,1705534233508,-655.73,0.00022094,2]
[311991590,1705534233519,-500.0,0.00022094,2]
[311991591,1705534233527,-500.0,0.00022094,2]
[311991592,1705534233537,-500.0,0.00022094,2]
[311991593,1705534233546,-500.0,0.00022094,2]
[311991594,1705534233557,-801.9,0.00022094,2]
[311991595,1705534233566,-500.0,0.00022094,2]
[311991596,1705534233577,-500.0,0.00022094,2]
[311991597,1705534233586,-500.0,0.00022094,2]
[311991598,1705534233595,-5969.19,0.00022094,2]
[311991599,1705534233604,-500.0,0.00022094,2]
[311991600,1705534233613,-500.0,0.00022094,2]
[311991601,1705534233623,-671.64,0.00022094,2]
[311991602,1705534233632,-500.0,0.00022094,2]
[311991603,1705534233641,-500.0,0.00022094,2]
[311991604,1705534233650,-500.0,0.00022094,2]
[311991605,1705534233659,-500.0,0.00022094,2]
[311991606,1705534233667,-778.63,0.00022094,2]
[311991607,1705534233676,-500.0,0.00022094,2]
[311991608,1705534233685,-500.0,0.00022094,2]
[311991609,1705534233694,-1064.56,0.00022094,2]
[311991610,1705534233703,-500.0,0.00022094,2]
[311991611,1705534233712,-1070.95,0.00022094,2]
[311991612,1705534233721,-755.76,0.00022094,2]
[311991613,1705534233730,-500.0,0.00022094,2]
[311991614,1705534233739,-1394.6,0.00022094,2]
[311991615,1705534233748,-500.0,0.00022094,2]
[311991616,1705534233757,-1147.55,0.00022094,2]
[311991617,1705534233767,-500.0,0.00022094,2]
[311991618,1705534233776,-500.0,0.00022094,2]
[311991619,1705534233785,-1974.89,0.00022094,5]
[311991620,1705534233794,-500.0,0.00022094,2]
[311991621,1705534233803,-513.37,0.00022094,2]
[311991622,1705534233812,-2013.58,0.00022094,2]
[311991623,1705534233822,-500.0,0.00022094,2]
[311991624,1705534233831,-513.2,0.00022094,2]
[311991625,1705534233840,-500.0,0.00022094,2]
[311991626,1705534233849,-1325.74,0.00022094,2]
[311991627,1705534233859,-500.0,0.00022094,2]
[311991628,1705534233868,-806.09,0.00022094,2]
[311991629,1705534233877,-500.0,0.00022094,2]
[311991630,1705534233886,-3284.01,0.00022094,2]
[311991631,1705534233895,-500.0,0.00022094,2]
[311991632,1705534233904,-500.0,0.00022094,2]
[311991633,1705534233914,-500.0,0.00022094,2]
[311991634,1705534233923,-500.0,0.00022094,2]
[311991635,1705534233932,-678.88,0.00022094,2]
[311991636,1705534233941,-500.0,0.00022094,2]
[311991637,1705534233951,-500.0,0.00022094,2]
[311991638,1705534233960,-2695.71,0.00022094,2]
[311991639,1705534233969,-500.0,0.00022094,2]
[311991640,1705534233979,-500.0,0.00022094,2]
[311991641,1705534233989,-500.0,0.00022094,2]
[311991642,1705534233997,-500.0,0.00022094,2]
[311991643,1705534234006,-500.0,0.00022094,2]
[311991644,1705534234015,-696.82,0.00022094,2]
[311991645,1705534234024,-500.0,0.00022095,2]
[311991646,1705534234034,-500.0,0.00022095,2]
[311991647,1705534234043,-500.0,0.00022095,2]
[311991648,1705534234052,-500.0,0.00022095,2]
[311991649,1705534234061,-245.22,0.00022095,2]
[311991650,1705534234070,-500.0,0.00022095,2]
[311991651,1705534234079,-554.38,0.00022095,2]
[311991652,1705534234088,-500.0,0.00022095,2]
[311991653,1705534234097,-500.0,0.00022095,2]
[311991654,1705534234107,-500.0,0.00022095,2]
[311991655,1705534234115,-500.0,0.00022095,2]
[311991656,1705534234124,-500.0,0.00022095,2]
[311991657,1705534234133,-500.0,0.00022095,2]
[311991658,1705534234142,-605.68,0.00022095,2]
[311991659,1705534234151,-500.0,0.00022095,2]
[311991660,1705534234161,-500.0,0.00022095,2]
[311991661,1705534234170,-500.0,0.00022095,2]
[311991662,1705534234179,-500.0,0.00022095,2]
[311991663,1705534234188,-500.0,0.00022095,2]
[311991664,1705534234197,-500.0,0.00022095,2]
[311991665,1705534234206,-500.0,0.00022095,2]
[311991666,1705534234216,-500.0,0.00022095,2]
[311991667,1705534234226,-500.0,0.00022095,2]
[311991668,1705534234237,-500.0,0.00022095,2]
[311991669,1705534234247,-612.84,0.00022095,2]
[311991670,1705534234258,-500.0,0.00022095,2]
[311991671,1705534234269,-500.0,0.00022095,2]
[311991672,1705534234280,-500.0,0.00022095,2]
[311991673,1705534234291,-500.0,0.00022095,2]
[311991674,1705534234302,-500.0,0.00022095,2]
[311991675,1705534234312,-503.28,0.00022095,2]
[311991676,1705534234323,-500.0,0.00022095,2]
[311991677,1705534234333,-500.0,0.00022095,2]